[Event "Titled Tuesday Blitz August 22 Early 2023"]
[White "Ocido, Michael"]
[Black "Albertini, Luca"]
[WhiteFideId "115201920"]
[BlackFideId "847038"]
[WhiteElo "2483"]
[BlackElo "2340"]
[Result "0-1"]
[Round "5"]
[TimeControl "180+1"]
[Date "2023.08.22"]
[WhiteClock "0:00:00"]
[BlackClock "0:00:13"]
[Board "162"]

1. d4 {[%clk 0:03:00]}  Nf6 {[%clk 0:02:59]} 2. c4 {[%clk 0:02:58]}  e6 {[%clk 0:03:00]} 3. Nc3 {[%clk 0:02:57]}  b6 {[%clk 0:03:01]} 4. e4 {[%clk 0:02:56]}  Bb7 {[%clk 0:03:00]} 5. f3 {[%clk 0:02:56]}  Bb4 {[%clk 0:03:00]} 6. Be3 {[%clk 0:02:55]}  O-O {[%clk 0:03:00]} 7. Bd3 {[%clk 0:02:54]}  d5 {[%clk 0:03:01]} 8. e5 {[%clk 0:02:52]}  Nfd7 {[%clk 0:03:01]} 9. cxd5 {[%clk 0:02:52]}  Bxd5 {[%clk 0:02:59]} 10. Ne2 {[%clk 0:02:52]}  c5 {[%clk 0:02:59]} 11. O-O {[%clk 0:02:51]}  cxd4 {[%clk 0:02:59]} 12. Bxd4 {[%clk 0:02:49]}  Bc5 {[%clk 0:03:00]} 13. Nxd5 {[%clk 0:02:47]}  exd5 {[%clk 0:02:53]} 14. f4 {[%clk 0:02:46]}  Nc6 {[%clk 0:02:51]} 15. Bb5 {[%clk 0:02:19]}  Nxd4 {[%clk 0:02:47]} 16. Nxd4 {[%clk 0:02:18]}  a6 {[%clk 0:02:47]} 17. Bc6 {[%clk 0:02:16]}  Rc8 {[%clk 0:02:44]} 18. Bxd7 {[%clk 0:02:15]}  Qxd7 {[%clk 0:02:44]} 19. Kh1 {[%clk 0:02:16]}  Bxd4 {[%clk 0:02:35]} 20. Qxd4 {[%clk 0:02:13]}  b5 {[%clk 0:02:33]} 21. f5 {[%clk 0:01:59]}  Rc4 {[%clk 0:02:32]} 22. Qf2 {[%clk 0:01:48]}  Re8 {[%clk 0:02:24]} 23. Rae1 {[%clk 0:01:47]}  Re4 {[%clk 0:01:58]} 24. f6 {[%clk 0:01:08]}  g6 {[%clk 0:01:30]} 25. Rxe4 {[%clk 0:01:04]}  dxe4 {[%clk 0:01:31]} 26. Qf4 {[%clk 0:01:04]}  Qf5 {[%clk 0:00:50]} 27. Qc1 {[%clk 0:00:51]}  Rc8 {[%clk 0:00:40]} 28. Qe1 {[%clk 0:00:34]}  Qxe5 {[%clk 0:00:36]} 29. h3 {[%clk 0:00:33]}  Rc6 {[%clk 0:00:34]} 30. Qh4 {[%clk 0:00:31]}  e3 {[%clk 0:00:29]} 31. Qh6 {[%clk 0:00:06]}  Rxf6 {[%clk 0:00:27]} 32. Rxf6 {[%clk 0:00:00]}  e2 {[%clk 0:00:13]} 0-1


[Site "https://www.chess.com"]

[Event "Titled Tuesday Blitz August 22 Early 2023"]
[White "Lopez Del Alamo, Antonio"]
[Black "Janaszak, Dawid"]
[WhiteFideId "2227339"]
[BlackFideId "1119206"]
[WhiteElo "2337"]
[BlackElo "2481"]
[Result "0-1"]
[Round "5"]
[TimeControl "180+1"]
[Date "2023.08.22"]
[WhiteClock "0:00:08"]
[BlackClock "0:00:41"]
[Board "163"]

1. e4 {[%clk 0:03:00]}  e5 {[%clk 0:02:57]} 2. Bc4 {[%clk 0:02:58]}  Nf6 {[%clk 0:02:56]} 3. d3 {[%clk 0:02:58]}  c6 {[%clk 0:02:54]} 4. Nf3 {[%clk 0:02:58]}  d5 {[%clk 0:02:55]} 5. Bb3 {[%clk 0:02:58]}  Bd6 {[%clk 0:02:52]} 6. Nc3 {[%clk 0:02:57]}  d4 {[%clk 0:02:50]} 7. Ne2 {[%clk 0:02:55]}  c5 {[%clk 0:02:41]} 8. Ng3 {[%clk 0:02:48]}  Nc6 {[%clk 0:02:41]} 9. O-O {[%clk 0:02:36]}  O-O {[%clk 0:02:41]} 10. Nh4 {[%clk 0:02:18]}  Na5 {[%clk 0:02:38]} 11. Nhf5 {[%clk 0:02:11]}  Nxb3 {[%clk 0:02:38]} 12. axb3 {[%clk 0:02:11]}  Re8 {[%clk 0:02:38]} 13. h3 {[%clk 0:02:08]}  Bf8 {[%clk 0:02:36]} 14. f4 {[%clk 0:01:59]}  Nd7 {[%clk 0:02:36]} 15. fxe5 {[%clk 0:01:56]}  Nxe5 {[%clk 0:02:36]} 16. Bf4 {[%clk 0:01:56]}  Ng6 {[%clk 0:02:35]} 17. Bd2 {[%clk 0:01:43]}  b5 {[%clk 0:02:35]} 18. Qh5 {[%clk 0:01:14]}  Be6 {[%clk 0:02:33]} 19. Rf2 {[%clk 0:01:13]}  c4 {[%clk 0:02:33]} 20. bxc4 {[%clk 0:01:13]}  bxc4 {[%clk 0:02:34]} 21. Raf1 {[%clk 0:01:13]}  Qb6 {[%clk 0:02:28]} 22. Bc1 {[%clk 0:01:09]}  Rac8 {[%clk 0:02:22]} 23. Nxg7 {[%clk 0:00:59]}  Bxg7 {[%clk 0:02:13]} 24. Nf5 {[%clk 0:00:58]}  cxd3 {[%clk 0:02:00]} 25. cxd3 {[%clk 0:00:51]}  Rc5 {[%clk 0:01:31]} 26. Bh6 {[%clk 0:00:47]}  Be5 {[%clk 0:01:12]} 27. Bg5 {[%clk 0:00:32]}  Rf8 {[%clk 0:00:59]} 28. Nh6+ {[%clk 0:00:14]}  Kg7 {[%clk 0:00:52]} 29. Nf5+ {[%clk 0:00:14]}  Kg8 {[%clk 0:00:52]} 30. Nh6+ {[%clk 0:00:13]}  Kh8 {[%clk 0:00:53]} 31. Nxf7+ {[%clk 0:00:13]}  Bxf7 {[%clk 0:00:52]} 32. Rxf7 {[%clk 0:00:13]}  Rxf7 {[%clk 0:00:44]} 33. Rxf7 {[%clk 0:00:14]}  Bg7 {[%clk 0:00:42]} 34. Bh6 {[%clk 0:00:14]}  Rxh5 {[%clk 0:00:40]} 35. Bxg7+ {[%clk 0:00:13]}  Kg8 {[%clk 0:00:41]} 36. Rf8+ {[%clk 0:00:08]}  Kxg7 {[%clk 0:00:41]} 0-1


[Site "https://www.chess.com"]

[Event "Titled Tuesday Blitz August 22 Early 2023"]
[White "Shuvalov, Evgenij"]
[Black "Ardila, Oscar Humberto"]
[WhiteFideId "4187237"]
[BlackFideId "4404742"]
[WhiteElo "2480"]
[BlackElo "2335"]
[Result "1/2-1/2"]
[Round "5"]
[TimeControl "180+1"]
[Date "2023.08.22"]
[WhiteClock "0:01:34"]
[BlackClock "0:00:39"]
[Board "164"]

1. d4 {[%clk 0:02:55]}  Nf6 {[%clk 0:02:59]} 2. c4 {[%clk 0:02:55]}  e6 {[%clk 0:03:00]} 3. Nc3 {[%clk 0:02:54]}  Bb4 {[%clk 0:03:00]} 4. e3 {[%clk 0:02:54]}  O-O {[%clk 0:02:57]} 5. a3 {[%clk 0:02:54]}  Bxc3+ {[%clk 0:02:57]} 6. bxc3 {[%clk 0:02:55]}  d6 {[%clk 0:02:56]} 7. Ne2 {[%clk 0:02:55]}  Nbd7 {[%clk 0:02:56]} 8. Ng3 {[%clk 0:02:55]}  e5 {[%clk 0:02:56]} 9. e4 {[%clk 0:02:54]}  Re8 {[%clk 0:02:55]} 10. d5 {[%clk 0:02:53]}  Nf8 {[%clk 0:02:54]} 11. Bd3 {[%clk 0:02:51]}  N8d7 {[%clk 0:02:54]} 12. f3 {[%clk 0:02:47]}  Nc5 {[%clk 0:02:54]} 13. Be3 {[%clk 0:02:35]}  b6 {[%clk 0:02:53]} 14. h4 {[%clk 0:02:33]}  Bd7 {[%clk 0:02:33]} 15. Nf1 {[%clk 0:02:27]}  Nh5 {[%clk 0:02:30]} 16. Bc2 {[%clk 0:02:22]}  Nf4 {[%clk 0:02:29]} 17. Qd2 {[%clk 0:02:20]}  Qf6 {[%clk 0:02:18]} 18. g3 {[%clk 0:02:15]}  Ng6 {[%clk 0:02:18]} 19. Nh2 {[%clk 0:02:08]}  h6 {[%clk 0:02:15]} 20. h5 {[%clk 0:02:08]}  Nf8 {[%clk 0:01:56]} 21. g4 {[%clk 0:02:07]}  Nh7 {[%clk 0:01:56]} 22. Nf1 {[%clk 0:02:04]}  Ng5 {[%clk 0:01:50]} 23. Bxg5 {[%clk 0:02:04]}  Qxg5 {[%clk 0:01:51]} 24. Qxg5 {[%clk 0:02:02]}  hxg5 {[%clk 0:01:52]} 25. Ne3 {[%clk 0:01:56]}  f6 {[%clk 0:01:46]} 26. a4 {[%clk 0:01:51]}  a5 {[%clk 0:01:45]} 27. Kd2 {[%clk 0:01:50]}  Kf7 {[%clk 0:01:45]} 28. Rh2 {[%clk 0:01:50]}  Rh8 {[%clk 0:01:44]} 29. Rhh1 {[%clk 0:01:49]}  Rh6 {[%clk 0:01:37]} 30. Nf5 {[%clk 0:01:45]}  Bxf5 {[%clk 0:01:36]} 31. exf5 {[%clk 0:01:46]}  Re8 {[%clk 0:01:29]} 32. Rhe1 {[%clk 0:01:46]}  Re7 {[%clk 0:01:28]} 33. Re4 {[%clk 0:01:45]}  Rh8 {[%clk 0:01:28]} 34. Ke3 {[%clk 0:01:44]}  Nxe4 {[%clk 0:00:56]} 35. Bxe4 {[%clk 0:01:38]}  Ke8 {[%clk 0:00:56]} 36. Kd2 {[%clk 0:01:37]}  Kd7 {[%clk 0:00:56]} 37. Kc2 {[%clk 0:01:37]}  Kc8 {[%clk 0:00:56]} 38. Kb3 {[%clk 0:01:37]}  Kb7 {[%clk 0:00:39]} 39. Ra2 {[%clk 0:01:34]} 1/2-1/2


[Site "https://www.chess.com"]

[Event "Titled Tuesday Blitz August 22 Early 2023"]
[White "DeyanKostov"]
[Black "Li, Hui"]
[BlackFideId "15400310"]
[WhiteElo "2467"]
[BlackElo "2316"]
[Result "1-0"]
[Round "5"]
[TimeControl "180+1"]
[Date "2023.08.22"]
[WhiteClock "0:00:33"]
[BlackClock "0:00:00"]
[Board "166"]

1. d4 {[%clk 0:03:00]}  d5 {[%clk 0:03:00]} 2. Bf4 {[%clk 0:03:00]}  Nf6 {[%clk 0:03:00]} 3. e3 {[%clk 0:02:59]}  c5 {[%clk 0:03:01]} 4. Nc3 {[%clk 0:02:59]}  cxd4 {[%clk 0:03:00]} 5. exd4 {[%clk 0:02:59]}  a6 {[%clk 0:03:00]} 6. Nf3 {[%clk 0:02:59]}  Bg4 {[%clk 0:03:00]} 7. h3 {[%clk 0:02:59]}  Bxf3 {[%clk 0:02:58]} 8. Qxf3 {[%clk 0:02:58]}  Nc6 {[%clk 0:02:59]} 9. Ne2 {[%clk 0:02:46]}  e6 {[%clk 0:02:43]} 10. c3 {[%clk 0:02:46]}  Bd6 {[%clk 0:02:40]} 11. Ng3 {[%clk 0:02:41]}  O-O {[%clk 0:02:31]} 12. Bd3 {[%clk 0:02:38]}  b5 {[%clk 0:01:25]} 13. O-O {[%clk 0:02:18]}  Bxf4 {[%clk 0:01:19]} 14. Qxf4 {[%clk 0:02:18]}  b4 {[%clk 0:01:00]} 15. Ne2 {[%clk 0:02:11]}  Qb8 {[%clk 0:00:49]} 16. Qd2 {[%clk 0:01:55]}  Qd6 {[%clk 0:00:42]} 17. a3 {[%clk 0:01:39]}  a5 {[%clk 0:00:33]} 18. Rfc1 {[%clk 0:01:28]}  bxc3 {[%clk 0:00:23]} 19. Qxc3 {[%clk 0:01:23]}  Rfc8 {[%clk 0:00:18]} 20. Qc5 {[%clk 0:01:19]}  Qxc5 {[%clk 0:00:17]} 21. Rxc5 {[%clk 0:01:19]}  Nd7 {[%clk 0:00:09]} 22. Rc2 {[%clk 0:01:17]}  Ne7 {[%clk 0:00:05]} 23. Rac1 {[%clk 0:01:16]}  Rxc2 {[%clk 0:00:04]} 24. Rxc2 {[%clk 0:01:17]}  Rc8 {[%clk 0:00:04]} 25. Rxc8+ {[%clk 0:01:14]}  Nxc8 {[%clk 0:00:05]} 26. Kf1 {[%clk 0:01:10]}  a4 {[%clk 0:00:06]} 27. Ke1 {[%clk 0:01:11]}  Ncb6 {[%clk 0:00:05]} 28. Nc3 {[%clk 0:01:10]}  Kf8 {[%clk 0:00:04]} 29. Bb5 {[%clk 0:01:06]}  Ke7 {[%clk 0:00:03]} 30. Nxa4 {[%clk 0:01:03]}  Nxa4 {[%clk 0:00:04]} 31. Bxa4 {[%clk 0:01:04]}  Nb6 {[%clk 0:00:04]} 32. Bb3 {[%clk 0:01:04]}  Kd6 {[%clk 0:00:04]} 33. Kd2 {[%clk 0:01:04]}  e5 {[%clk 0:00:04]} 34. dxe5+ {[%clk 0:01:01]}  Kxe5 {[%clk 0:00:05]} 35. a4 {[%clk 0:00:59]}  Nc8 {[%clk 0:00:03]} 36. a5 {[%clk 0:00:59]}  Kd4 {[%clk 0:00:03]} 37. Ba4 {[%clk 0:00:54]}  Na7 {[%clk 0:00:03]} 38. Be8 {[%clk 0:00:45]}  f6 {[%clk 0:00:02]} 39. b3 {[%clk 0:00:41]}  Kc5 {[%clk 0:00:02]} 40. Kc3 {[%clk 0:00:39]}  d4+ {[%clk 0:00:02]} 41. Kd3 {[%clk 0:00:39]}  g5 {[%clk 0:00:02]} 42. Bf7 {[%clk 0:00:35]}  h6 {[%clk 0:00:02]} 43. a6 {[%clk 0:00:34]}  Kb6 {[%clk 0:00:02]} 44. Kxd4 {[%clk 0:00:33]}  Kxa6 {[%clk 0:00:02]} 45. Ke4 {[%clk 0:00:33]}  Nc6 {[%clk 0:00:02]} 46. Kf5 {[%clk 0:00:32]}  Kb6 {[%clk 0:00:00]} 47. Kxf6 {[%clk 0:00:33]} 1-0


[Site "https://www.chess.com"]

[Event "Titled Tuesday Blitz August 22 Early 2023"]
[White "Herzog2012"]
[Black "Slavin, Alexey"]
[BlackFideId "24104388"]
[WhiteElo "2440"]
[BlackElo "2266"]
[Result "1-0"]
[Round "5"]
[TimeControl "180+1"]
[Date "2023.08.22"]
[WhiteClock "0:00:11"]
[BlackClock "0:00:06"]
[Board "171"]

1. e4 {[%clk 0:02:55]}  Nc6 {[%clk 0:02:59]} 2. Nc3 {[%clk 0:02:53]}  Nf6 {[%clk 0:02:58]} 3. d4 {[%clk 0:02:50]}  d6 {[%clk 0:02:57]} 4. d5 {[%clk 0:02:44]}  Ne5 {[%clk 0:02:56]} 5. Bg5 {[%clk 0:02:42]}  c6 {[%clk 0:02:54]} 6. f4 {[%clk 0:02:34]}  Ned7 {[%clk 0:02:53]} 7. Nf3 {[%clk 0:02:34]}  cxd5 {[%clk 0:02:52]} 8. exd5 {[%clk 0:02:34]}  g6 {[%clk 0:02:52]} 9. Bb5 {[%clk 0:02:33]}  Bg7 {[%clk 0:02:50]} 10. O-O {[%clk 0:02:20]}  O-O {[%clk 0:02:49]} 11. Kh1 {[%clk 0:02:18]}  a6 {[%clk 0:02:42]} 12. Ba4 {[%clk 0:02:16]}  b5 {[%clk 0:02:36]} 13. Bb3 {[%clk 0:02:15]}  Nc5 {[%clk 0:02:35]} 14. a4 {[%clk 0:02:14]}  Nxb3 {[%clk 0:02:33]} 15. cxb3 {[%clk 0:02:13]}  b4 {[%clk 0:02:30]} 16. Ne2 {[%clk 0:02:13]}  Bb7 {[%clk 0:02:25]} 17. Bxf6 {[%clk 0:02:12]}  Bxf6 {[%clk 0:02:24]} 18. Qd2 {[%clk 0:02:11]}  a5 {[%clk 0:02:23]} 19. f5 {[%clk 0:02:05]}  Qb6 {[%clk 0:02:14]} 20. Rac1 {[%clk 0:02:04]}  Rac8 {[%clk 0:02:13]} 21. fxg6 {[%clk 0:02:03]}  hxg6 {[%clk 0:02:12]} 22. h4 {[%clk 0:01:50]}  Qb5 {[%clk 0:01:57]} 23. Nf4 {[%clk 0:01:36]}  Qd7 {[%clk 0:01:49]} 24. h5 {[%clk 0:01:29]}  Qg4 {[%clk 0:01:42]} 25. hxg6 {[%clk 0:01:27]}  Rxc1 {[%clk 0:01:27]} 26. gxf7+ {[%clk 0:01:20]}  Rxf7 {[%clk 0:01:26]} 27. Qxc1 {[%clk 0:01:21]}  Ba6 {[%clk 0:01:14]} 28. Rf2 {[%clk 0:01:04]}  Qg3 {[%clk 0:01:11]} 29. Nh3 {[%clk 0:00:56]}  Rh7 {[%clk 0:01:02]} 30. Qg1 {[%clk 0:00:47]}  Bc8 {[%clk 0:00:54]} 31. Qh2 {[%clk 0:00:43]}  Qg4 {[%clk 0:00:44]} 32. Kg1 {[%clk 0:00:36]}  Bf5 {[%clk 0:00:43]} 33. Qf4 {[%clk 0:00:33]}  Qg6 {[%clk 0:00:40]} 34. Ne5 {[%clk 0:00:29]}  Bxe5 {[%clk 0:00:39]} 35. Qxf5 {[%clk 0:00:28]}  Qxf5 {[%clk 0:00:36]} 36. Rxf5 {[%clk 0:00:29]}  Bxb2 {[%clk 0:00:35]} 37. Ng5 {[%clk 0:00:28]}  Rg7 {[%clk 0:00:31]} 38. Ne6 {[%clk 0:00:28]}  Rf7 {[%clk 0:00:31]} 39. Rxf7 {[%clk 0:00:19]}  Kxf7 {[%clk 0:00:30]} 40. Nd8+ {[%clk 0:00:19]}  Kf6 {[%clk 0:00:29]} 41. Nc6 {[%clk 0:00:20]}  Bc3 {[%clk 0:00:21]} 42. Kf2 {[%clk 0:00:10]}  Kf5 {[%clk 0:00:19]} 43. Kf3 {[%clk 0:00:09]}  e5 {[%clk 0:00:18]} 44. g4+ {[%clk 0:00:05]}  Kg5 {[%clk 0:00:17]} 45. Nxa5 {[%clk 0:00:05]}  Bd4 {[%clk 0:00:16]} 46. Nc4 {[%clk 0:00:06]}  Bc5 {[%clk 0:00:16]} 47. a5 {[%clk 0:00:06]}  Kf6 {[%clk 0:00:16]} 48. Ke4 {[%clk 0:00:07]}  Kg5 {[%clk 0:00:15]} 49. Kf3 {[%clk 0:00:08]}  Kf6 {[%clk 0:00:15]} 50. a6 {[%clk 0:00:08]}  Kg5 {[%clk 0:00:14]} 51. Nxd6 {[%clk 0:00:08]}  Kg6 {[%clk 0:00:12]} 52. Nc8 {[%clk 0:00:07]}  Kf7 {[%clk 0:00:11]} 53. a7 {[%clk 0:00:08]}  Bxa7 {[%clk 0:00:10]} 54. Nxa7 {[%clk 0:00:09]}  Ke7 {[%clk 0:00:10]} 55. Ke4 {[%clk 0:00:10]}  Kd6 {[%clk 0:00:11]} 56. Nc6 {[%clk 0:00:10]}  Kc5 {[%clk 0:00:06]} 57. Kxe5 {[%clk 0:00:11]} 1-0


[Site "https://www.chess.com"]

[Event "Titled Tuesday Blitz August 22 Early 2023"]
[White "Baruch, Liam"]
[Black "ExchangeAB"]
[WhiteFideId "14322064"]
[WhiteElo "2158"]
[BlackElo "2417"]
[Result "1/2-1/2"]
[Round "5"]
[TimeControl "180+1"]
[Date "2023.08.22"]
[WhiteClock "0:00:22"]
[BlackClock "0:00:49"]
[Board "174"]

1. e4 {[%clk 0:03:00]}  c6 {[%clk 0:02:59]} 2. d4 {[%clk 0:03:00]}  d5 {[%clk 0:02:59]} 3. exd5 {[%clk 0:03:01]}  cxd5 {[%clk 0:02:58]} 4. Bd3 {[%clk 0:03:02]}  Nf6 {[%clk 0:02:58]} 5. c3 {[%clk 0:03:02]}  Nc6 {[%clk 0:02:56]} 6. Bf4 {[%clk 0:03:02]}  Bg4 {[%clk 0:02:53]} 7. Qb3 {[%clk 0:03:02]}  Qd7 {[%clk 0:02:53]} 8. Nd2 {[%clk 0:02:59]}  e6 {[%clk 0:02:54]} 9. Ngf3 {[%clk 0:02:59]}  Bd6 {[%clk 0:02:55]} 10. Bg3 {[%clk 0:02:58]}  Bxf3 {[%clk 0:02:54]} 11. Nxf3 {[%clk 0:02:57]}  O-O {[%clk 0:02:54]} 12. O-O {[%clk 0:02:56]}  Bxg3 {[%clk 0:02:54]} 13. hxg3 {[%clk 0:02:57]}  Rac8 {[%clk 0:02:52]} 14. Rfe1 {[%clk 0:02:56]}  Na5 {[%clk 0:02:51]} 15. Qb5 {[%clk 0:02:47]}  Qxb5 {[%clk 0:02:50]} 16. Bxb5 {[%clk 0:02:48]}  Nc4 {[%clk 0:02:50]} 17. Bxc4 {[%clk 0:02:47]}  Rxc4 {[%clk 0:02:51]} 18. Ne5 {[%clk 0:02:47]}  Rc7 {[%clk 0:02:51]} 19. a4 {[%clk 0:02:40]}  Rfc8 {[%clk 0:02:50]} 20. a5 {[%clk 0:02:40]}  Nd7 {[%clk 0:02:48]} 21. a6 {[%clk 0:02:35]}  Nxe5 {[%clk 0:02:46]} 22. Rxe5 {[%clk 0:02:29]}  b6 {[%clk 0:02:46]} 23. Rae1 {[%clk 0:02:24]}  g6 {[%clk 0:02:41]} 24. g4 {[%clk 0:02:20]}  Rc4 {[%clk 0:02:40]} 25. Ra1 {[%clk 0:02:16]}  b5 {[%clk 0:02:38]} 26. g5 {[%clk 0:02:02]}  b4 {[%clk 0:02:37]} 27. Rb1 {[%clk 0:01:39]}  R8c6 {[%clk 0:02:33]} 28. Re3 {[%clk 0:01:24]}  Rxa6 {[%clk 0:02:31]} 29. Kf1 {[%clk 0:01:24]}  Rac6 {[%clk 0:02:30]} 30. Ra1 {[%clk 0:01:05]}  bxc3 {[%clk 0:02:26]} 31. bxc3 {[%clk 0:01:05]}  Rxc3 {[%clk 0:02:27]} 32. Rxa7 {[%clk 0:01:03]}  Rxe3 {[%clk 0:02:21]} 33. fxe3 {[%clk 0:01:04]}  Rc2 {[%clk 0:02:19]} 34. Ra3 {[%clk 0:01:00]}  Kg7 {[%clk 0:02:18]} 35. Rb3 {[%clk 0:01:01]}  h6 {[%clk 0:02:16]} 36. gxh6+ {[%clk 0:01:00]}  Kxh6 {[%clk 0:02:17]} 37. Rb1 {[%clk 0:00:59]}  Kg5 {[%clk 0:02:15]} 38. Rb7 {[%clk 0:00:57]}  f6 {[%clk 0:02:13]} 39. Re7 {[%clk 0:00:57]}  Rc6 {[%clk 0:02:09]} 40. Kf2 {[%clk 0:00:55]}  Kf5 {[%clk 0:02:09]} 41. Kf3 {[%clk 0:00:55]}  g5 {[%clk 0:02:05]} 42. Rg7 {[%clk 0:00:55]}  e5 {[%clk 0:02:01]} 43. g4+ {[%clk 0:00:53]}  Ke6 {[%clk 0:02:01]} 44. dxe5 {[%clk 0:00:54]}  Kxe5 {[%clk 0:01:59]} 45. Re7+ {[%clk 0:00:54]}  Re6 {[%clk 0:01:59]} 46. Rd7 {[%clk 0:00:52]}  Re8 {[%clk 0:01:55]} 47. Rf7 {[%clk 0:00:48]}  Ke6 {[%clk 0:01:53]} 48. Ra7 {[%clk 0:00:48]}  Rh8 {[%clk 0:01:53]} 49. Ra6+ {[%clk 0:00:49]}  Ke5 {[%clk 0:01:53]} 50. Kg3 {[%clk 0:00:43]}  Rh1 {[%clk 0:01:52]} 51. Ra8 {[%clk 0:00:40]}  Rg1+ {[%clk 0:01:51]} 52. Kf3 {[%clk 0:00:40]}  Rf1+ {[%clk 0:01:52]} 53. Kg2 {[%clk 0:00:39]}  Re1 {[%clk 0:01:49]} 54. Re8+ {[%clk 0:00:39]}  Kd6 {[%clk 0:01:49]} 55. Kf2 {[%clk 0:00:40]}  Ra1 {[%clk 0:01:48]} 56. Rf8 {[%clk 0:00:39]}  Ke7 {[%clk 0:01:47]} 57. Rb8 {[%clk 0:00:39]}  Ra2+ {[%clk 0:01:44]} 58. Kf3 {[%clk 0:00:39]}  Ra3 {[%clk 0:01:44]} 59. Rb7+ {[%clk 0:00:40]}  Ke6 {[%clk 0:01:44]} 60. Rb6+ {[%clk 0:00:38]}  Ke5 {[%clk 0:01:44]} 61. Rb4 {[%clk 0:00:35]}  Rd3 {[%clk 0:01:43]} 62. Ke2 {[%clk 0:00:34]}  Rc3 {[%clk 0:01:42]} 63. Rb8 {[%clk 0:00:30]}  Ra3 {[%clk 0:01:36]} 64. Re8+ {[%clk 0:00:30]}  Kd6 {[%clk 0:01:35]} 65. Rf8 {[%clk 0:00:30]}  Ke7 {[%clk 0:01:35]} 66. Rb8 {[%clk 0:00:30]}  Ra4 {[%clk 0:01:34]} 67. Rb7+ {[%clk 0:00:30]}  Ke6 {[%clk 0:01:34]} 68. Kf3 {[%clk 0:00:30]}  Rc4 {[%clk 0:01:33]} 69. Rb6+ {[%clk 0:00:30]}  Ke5 {[%clk 0:01:33]} 70. Rb8 {[%clk 0:00:31]}  Rc1 {[%clk 0:01:26]} 71. Re8+ {[%clk 0:00:31]}  Kd6 {[%clk 0:01:26]} 72. Rd8+ {[%clk 0:00:30]}  Ke6 {[%clk 0:01:26]} 73. Re8+ {[%clk 0:00:31]}  Kf7 {[%clk 0:01:25]} 74. Rd8 {[%clk 0:00:31]}  Rd1 {[%clk 0:01:24]} 75. Ke2 {[%clk 0:00:31]}  Rg1 {[%clk 0:01:24]} 76. Kf3 {[%clk 0:00:30]}  Ke6 {[%clk 0:01:22]} 77. Re8+ {[%clk 0:00:30]}  Kd6 {[%clk 0:01:22]} 78. Rf8 {[%clk 0:00:30]}  Ke7 {[%clk 0:01:22]} 79. Ra8 {[%clk 0:00:30]}  Rf1+ {[%clk 0:01:20]} 80. Ke2 {[%clk 0:00:28]}  Rb1 {[%clk 0:01:19]} 81. Ra7+ {[%clk 0:00:26]}  Ke6 {[%clk 0:01:19]} 82. Kf3 {[%clk 0:00:25]}  Rb4 {[%clk 0:01:18]} 83. Ra6+ {[%clk 0:00:24]}  Kf7 {[%clk 0:01:18]} 84. Ra7+ {[%clk 0:00:25]}  Ke6 {[%clk 0:01:17]} 85. Ra6+ {[%clk 0:00:25]}  Ke5 {[%clk 0:01:18]} 86. Ra7 {[%clk 0:00:25]}  f5 {[%clk 0:01:16]} 87. gxf5 {[%clk 0:00:22]}  Kxf5 {[%clk 0:01:17]} 88. Rf7+ {[%clk 0:00:22]}  Ke5 {[%clk 0:01:16]} 89. Rg7 {[%clk 0:00:22]}  g4+ {[%clk 0:01:15]} 90. Ke2 {[%clk 0:00:20]}  Re4 {[%clk 0:01:14]} 91. Rg5+ {[%clk 0:00:19]}  Kd6 {[%clk 0:01:13]} 92. Kd3 {[%clk 0:00:19]}  Ra4 {[%clk 0:01:11]} 93. Rg8 {[%clk 0:00:18]}  Ra3+ {[%clk 0:01:10]} 94. Ke2 {[%clk 0:00:19]}  Ra2+ {[%clk 0:01:09]} 95. Kd3 {[%clk 0:00:19]}  Rg2 {[%clk 0:01:09]} 96. e4 {[%clk 0:00:19]}  Ke5 {[%clk 0:00:54]} 97. exd5 {[%clk 0:00:19]}  Rg3+ {[%clk 0:00:53]} 98. Ke2 {[%clk 0:00:20]}  Kxd5 {[%clk 0:00:53]} 99. Kf2 {[%clk 0:00:20]}  Rf3+ {[%clk 0:00:53]} 100. Kg2 {[%clk 0:00:21]}  Rf4 {[%clk 0:00:50]} 101. Kg3 {[%clk 0:00:21]}  Ra4 {[%clk 0:00:49]} 102. Rxg4 {[%clk 0:00:21]}  Rxg4+ {[%clk 0:00:49]} 103. Kxg4 {[%clk 0:00:22]} 1/2-1/2


[Site "https://www.chess.com"]

[Event "Titled Tuesday Blitz August 22 Early 2023"]
[White "Semenova, Alina"]
[Black "Khromkin, Andrey"]
[WhiteFideId "24113875"]
[BlackFideId "4154126"]
[WhiteElo "2071"]
[BlackElo "2416"]
[Result "0-1"]
[Round "5"]
[TimeControl "180+1"]
[Date "2023.08.22"]
[WhiteClock "0:00:14"]
[BlackClock "0:00:54"]
[Board "175"]

1. e4 {[%clk 0:03:00]}  c5 {[%clk 0:02:59]} 2. Nf3 {[%clk 0:02:59]}  Nc6 {[%clk 0:02:59]} 3. d4 {[%clk 0:02:59]}  cxd4 {[%clk 0:02:59]} 4. Nxd4 {[%clk 0:03:00]}  g6 {[%clk 0:03:00]} 5. c4 {[%clk 0:02:59]}  Bg7 {[%clk 0:03:00]} 6. Be3 {[%clk 0:02:59]}  Nf6 {[%clk 0:03:01]} 7. Nc3 {[%clk 0:03:00]}  Ng4 {[%clk 0:03:01]} 8. Qxg4 {[%clk 0:03:00]}  Nxd4 {[%clk 0:03:02]} 9. Qd1 {[%clk 0:03:01]}  Ne6 {[%clk 0:03:03]} 10. Rc1 {[%clk 0:03:01]}  Qa5 {[%clk 0:03:03]} 11. Be2 {[%clk 0:02:57]}  b6 {[%clk 0:03:03]} 12. O-O {[%clk 0:02:56]}  Bb7 {[%clk 0:03:04]} 13. f3 {[%clk 0:02:56]}  f5 {[%clk 0:02:51]} 14. exf5 {[%clk 0:02:55]}  gxf5 {[%clk 0:02:51]} 15. Nd5 {[%clk 0:02:48]}  Bxb2 {[%clk 0:02:47]} 16. Rc2 {[%clk 0:02:46]}  Bg7 {[%clk 0:02:33]} 17. f4 {[%clk 0:02:40]}  d6 {[%clk 0:02:10]} 18. Bh5+ {[%clk 0:02:35]}  Kd7 {[%clk 0:02:10]} 19. Qd3 {[%clk 0:02:31]}  Rhf8 {[%clk 0:02:07]} 20. Rd1 {[%clk 0:02:31]}  Nc5 {[%clk 0:02:00]} 21. Qe2 {[%clk 0:02:11]}  e6 {[%clk 0:01:43]} 22. Bf3 {[%clk 0:01:51]}  exd5 {[%clk 0:01:38]} 23. Bxd5 {[%clk 0:01:52]}  Bxd5 {[%clk 0:01:37]} 24. Rxd5 {[%clk 0:01:53]}  Rae8 {[%clk 0:01:27]} 25. Rcd2 {[%clk 0:01:17]}  Rf6 {[%clk 0:01:16]} 26. Qf3 {[%clk 0:01:04]}  Rfe6 {[%clk 0:01:10]} 27. Bxc5 {[%clk 0:01:00]}  bxc5 {[%clk 0:01:05]} 28. Qh5 {[%clk 0:00:41]}  Bd4+ {[%clk 0:00:56]} 29. R5xd4 {[%clk 0:00:36]}  cxd4 {[%clk 0:00:55]} 30. Qf7+ {[%clk 0:00:14]}  R8e7 {[%clk 0:00:54]} 0-1


[Site "https://www.chess.com"]